[Event "Teplice Open 2019"]
[Site "Teplice"]
[Date "2019.06.19"]
[Round "5.36"]
[White "Lyell, Mark"]
[Black "Morgunov, Marc"]
[Result "0-1"]
[ECO "A45"]
[WhiteElo "2222"]
[BlackElo "2351"]
[Annotator "NA"]
[PlyCount "104"]
[EventDate "2019.06.15"]
[EventType "swiss"]
[EventCountry "CZE"]
[SourceTitle "playchess.com"]
[Source "ChessBase"]
[SourceQuality "1"]
[TimeControl "40/5400+30:1800+30"]

1. d4 {[%emt 0:00:00]} Nf6 {[%emt 0:00:00]} 2. Bf4 {[%emt 0:00:12]} g6 {[%emt 0:00:02]} 3. Nc3 {[%emt 0:00:19]} d5 {[%emt 0:00:37]} 4. e3 {[%emt 0:00:28]} Bg7 {[%emt 0:01:08]} 5. h4 {[%emt 0:00:19]} h5 {[%emt 0:02:19]} 6. Nf3 {[%emt 0:00:17]} O-O {[%emt 0:04:11]} 7. Ne5 {[%emt 0:01:15]} Nbd7 {[%emt 0:06:01]} 8. Be2 {[%emt 0:07:00]} c6 {[%emt 0:09:28]} 9. Qd2 {[%emt 0:07:19]} Nxe5 {[%emt 0:05:13]} 10. Bxe5 {[%emt 0:00:48]} b5 {[%emt 0:01:00]} 11. f3 {[%emt 0:01:22]} Qa5 {[%emt 0:07:48]} 12. Nd1 {[%emt 0:00:26]} Qb6 {[%emt 0:01:17]} 13. a4 {[%emt 0:03:33]} bxa4 {[%emt 0:06:50]} 14. Rxa4 {[%emt 0:04:05]} c5 {[%emt 0:14:57]} 15. O-O {[%emt 0:07:41]} cxd4 {[%emt 0:07:31]} 16. Bxd4 {[%emt 0:02:28]} Qc7 {[%emt 0:01:25]} 17. Qc3 {[%emt 0:01:01]} Qxc3 {[%emt 0:02:51]} 18. Nxc3 {[%emt 0:00:32]} Bf5 {[%emt 0:02:02]} 19. Bd3 {[%emt 0:08:02]} Bxd3 {[%emt 0:02:14]} 20. cxd3 {[%emt 0:00:04]} Rfb8 {[%emt 0:01:50]} 21. b4 {[%emt 0:00:59]} Rb7 {[%emt 0:02:40]} 22. b5 {[%emt 0:05:46]} e6 {[%emt 0:02:40]} 23. Rb1 {[%emt 0:16:38]} Nd7 {[%emt 0:01:31]} 24. Bxg7 {[%emt 0:01:24]} Kxg7 {[%emt 0:00:04]} 25. Rab4 {[%emt 0:06:04]} Rc8 {[%emt 0:02:21]} 26. Na4 {[%emt 0:01:10]} Nc5 {[%emt 0:02:01]} 27. Nxc5 {[%emt 0:04:32]} Rxc5 {[%emt 0:00:05]} 28. R1b2 {[%emt 0:01:14]} Rc3 {[%emt 0:01:06]} 29. R4b3 {[%emt 0:01:08]} Rxb3 {[%emt 0:00:17]} 30. Rxb3 {[%emt 0:00:59]} a6 {[%emt 0:00:38]} 31. b6 {[%emt 0:00:08]} Kf6 {[%emt 0:00:24]} 32. Kf2 {[%emt 0:01:24]} Ke5 {[%emt 0:01:21]} 33. g4 {[%emt 0:03:36]} Kd6 {[%emt 0:01:53]} 34. e4 {[%emt 0:08:55]} Kc6 {[%emt 0:02:04]} 35. exd5+ {[%emt 0:00:00]} exd5 {[%emt 0:01:52]} 36. gxh5 {[%emt 0:00:00]} gxh5 {[%emt 0:00:04]} 37. Ke3 {[%emt 0:00:00]} a5 {[%emt 0:02:05]} 38. Ra3 {[%emt 0:03:53]} Kxb6 {[%emt 0:00:14]} 39. Kd4 {[%emt 0:00:48]} Kb5 {[%emt 0:02:34]} 40. Kxd5 {[%emt 0:03:20]} Kb4 {[%emt 0:00:33]} 41. Ra1 {[%emt 0:01:52]} Rd7+ {[%emt 0:00:02]} 42. Ke4 {[%emt 0:00:14]} a4 {[%emt 0:00:58]} 43. d4 {[%emt 0:03:51]} a3 {[%emt 0:03:33]} 44. Kd3 {[%emt 0:00:23]} Ra7 {[%emt 0:01:07]} 45. Rb1+ {[%emt 0:03:02]} Ka4 {[%emt 0:00:09]} 46. Ra1 {[%emt 0:02:38]} Kb5 {[%emt 0:02:15]} 47. Ke4 {[%emt 0:11:12]} a2 {[%emt 0:01:00]} 48. Kf5 {[%emt 0:02:01]} Kc4 {[%emt 0:00:30]} 49. Kg5 {[%emt 0:01:43]} Ra5+ {[%emt 0:00:22]} 50. Kf6 {[%emt 0:00:45]} Kxd4 {[%emt 0:00:16]} 51. Kxf7 {[%emt 0:00:18]} Ke3 {[%emt 0:00:20]} 52. Kg6 {[%emt 0:02:14]} Kxf3 {[%emt 0:00:06]} 0-1

[Event "Teplice Open 2019"]
[Site "Teplice"]
[Date "2019.06.19"]
[Round "5.37"]
[White "Mitscherling, Andreas"]
[Black "Paszewski, Mateusz"]
[Result "1/2-1/2"]
[ECO "D02"]
[WhiteElo "2175"]
[BlackElo "2346"]
[Annotator "NA"]
[PlyCount "60"]
[EventDate "2019.06.15"]
[EventType "swiss"]
[EventCountry "CZE"]
[SourceTitle "playchess.com"]
[Source "ChessBase"]
[SourceQuality "1"]
[TimeControl "40/5400+30:1800+30"]

1. d4 {[%emt 0:00:00]} d5 {[%emt 0:00:00]} 2. Nf3 {[%emt 0:00:00]} Nf6 {[%emt 0:00:00]} 3. Bf4 {[%emt 0:00:00]} e6 {[%emt 0:00:00]} 4. e3 {[%emt 0:00:31]} Bd6 {[%emt 0:00:19]} 5. Bg3 {[%emt 0:01:24]} c5 {[%emt 0:00:43]} 6. dxc5 {[%emt 0:00:32]} Bxc5 {[%emt 0:01:26]} 7. Be2 {[%emt 0:02:09]} O-O {[%emt 0:04:48]} 8. O-O {[%emt 0:00:34]} Qb6 {[%emt 0:05:44]} 9. Nc3 {[%emt 0:07:17]} Bd7 {[%emt 0:06:24]} 10. Be5 {[%emt 0:07:11]} Rc8 {[%emt 0:03:54]} 11. Bd3 {[%emt 0:03:56]} Bc6 {[%emt 0:06:23]} 12. Bxf6 {[%emt 0:04:25]} gxf6 {[%emt 0:01:40]} 13. Nd4 {[%emt 0:01:16]} Bxd4 {[%emt 0:09:13]} 14. exd4 {[%emt 0:00:15]} f5 {[%emt 0:02:05]} 15. Ne2 {[%emt 0:10:02]} Nd7 {[%emt 0:02:16]} 16. Rb1 {[%emt 0:12:49]} Kh8 {[%emt 0:02:21]} 17. c3 {[%emt 0:00:42]} Bb5 {[%emt 0:03:02]} 18. Nf4 {[%emt 0:00:30]} Rg8 {[%emt 0:01:38]} 19. Qf3 {[%emt 0:08:48]} Rg5 {[%emt 0:06:30]} 20. g3 {[%emt 0:01:44]} Rag8 {[%emt 0:02:12]} 21. Rfe1 {[%emt 0:01:31]} Bxd3 {[%emt 0:01:56]} 22. Nxd3 {[%emt 0:00:07]} Qd8 {[%emt 0:06:50]} 23. Ne5 {[%emt 0:01:11]} Nxe5 {[%emt 0:01:58]} 24. Rxe5 {[%emt 0:00:01]} Rg4 {[%emt 0:00:59]} 25. Kg2 {[%emt 0:05:16]} Qf6 {[%emt 0:02:20]} 26. Rbe1 {[%emt 0:02:52]} Qg6 {[%emt 0:04:21]} 27. h3 {[%emt 0:03:20]} Rg5 {[%emt 0:03:12]} 28. Qf4 {[%emt 0:00:45]} Qh6 {[%emt 0:03:08]} 29. Kh2 {[%emt 0:00:36]} Qf6 {[%emt 0:03:23]} 30. R5e3 {[%emt 0:00:20]} a6 {[%emt 0:01:17]} 1/2-1/2

[Event "Teplice Open 2019"]
[Site "Teplice"]
[Date "2019.06.20"]
[Round "6.6"]
[White "Lagarde, Maxime"]
[Black "Greenfeld, Alon"]
[Result "1/2-1/2"]
[ECO "C66"]
[WhiteElo "2599"]
[BlackElo "2513"]
[Annotator "ChessBase"]
[PlyCount "65"]
[EventDate "2019.06.15"]
[EventType "swiss"]
[EventCountry "CZE"]
[SourceTitle "playchess.com"]
[Source "ChessBase"]
[SourceQuality "1"]
[TimeControl "40/5400+30:1800+30"]

1. e4 {[%emt 0:00:00]} e5 {[%emt 0:00:50]} 2. Nf3 {[%emt 0:01:29]} Nc6 {[%emt 0:00:25]} 3. c3 {[%emt 0:00:49]} Nf6 {[%emt 0:02:42]} 4. d4 {[%emt 0:00:10]} d6 {[%emt 0:12:22]} 5. Bb5 {[%emt 0:06:13]} Bd7 {[%emt 0:01:12]} 6. O-O {[%emt 0:02:24]} Be7 {[%emt 0:02:23]} 7. Re1 {[%emt 0:04:43]} O-O {[%emt 0:00:26]} 8. h3 {[%emt 0:07:32]} Nxd4 {[%emt 0:05:31]} 9. Nxd4 {[%emt 0:02:17]} exd4 {[%emt 0:00:09]} 10. Bxd7 {[%emt 0:00:06]} Qxd7 {[%emt 0:01:34]} 11. cxd4 {[%emt 0:00:45]} d5 {[%emt 0:00:10]} 12. e5 {[%emt 0:00:12]} Ne4 {[%emt 0:00:10]} 13. Nd2 {[%emt 0:00:17]} f5 {[%emt 0:06:53]} 14. Qb3 {[%emt 0:08:52]} c5 {[%emt 0:07:07]} 15. dxc5 {[%emt 0:04:24]} Nxc5 {[%emt 0:01:12]} 16. Qd1 {[%emt 0:03:22]} Rad8 {[%emt 0:06:53]} 17. Nf3 {[%emt 0:02:05]} d4 {[%emt 0:04:23]} 18. Bg5 {[%emt 0:06:33]} Ne6 {[%emt 0:07:57]} 19. Bxe7 {[%emt 0:02:32]} Qxe7 {[%emt 0:00:02]} 20. Qa4 {[%emt 0:02:57]} a6 {[%emt 0:00:21]} 21. Rad1 {[%emt 0:00:50]} Qd7 {[%emt 0:01:57]} 22. Qa3 {[%emt 0:07:20]} Qc6 {[%emt 0:08:48]} 23. Qe7 {[%emt 0:05:07]} Rd7 {[%emt 0:10:59]} 24. Qh4 {[%emt 0:00:20]} g5 {[%emt 0:00:06]} 25. Qg3 {[%emt 0:05:54]} h6 {[%emt 0:02:49]} 26. h4 {[%emt 0:02:47]} Qd5 {[%emt 0:07:14]} 27. hxg5 {[%emt 0:05:39]} hxg5 {[%emt 0:00:20]} 28. Rd2 {[%emt 0:00:56]} g4 {[%emt 0:01:44]} 29. Red1 {[%emt 0:00:45]} Qe4 {[%emt 0:00:26]} 30. Re1 {[%emt 0:01:26]} Qd5 {[%emt 0:00:12]} 31. Red1 {[%emt 0:00:04]} Qe4 {[%emt 0:00:20]} 32. Re1 {[%emt 0:00:04]} Qd5 {[%emt 0:00:09]} 33. Red1 {[%emt 0:01:54]} 1/2-1/2

[Event "Teplice Open 2019"]
[Site "Teplice"]
[Date "2019.06.20"]
[Round "6.7"]
[White "Krzyzanowski, Marcin"]
[Black "Santos Latasa, Jaime"]
[Result "0-1"]
[ECO "B69"]
[WhiteElo "2510"]
[BlackElo "2588"]
[Annotator "ChessBase"]
[PlyCount "78"]
[EventDate "2019.06.15"]
[EventType "swiss"]
[EventCountry "CZE"]
[SourceTitle "playchess.com"]
[Source "ChessBase"]
[SourceQuality "1"]
[TimeControl "40/5400+30:1800+30"]

1. e4 {[%emt 0:00:00]} c5 {[%emt 0:00:00]} 2. Nc3 {[%emt 0:00:00]} Nc6 {[%emt 0:00:00]} 3. Nf3 {[%emt 0:00:16]} d6 {[%emt 0:00:00]} 4. d4 {[%emt 0:01:05]} cxd4 {[%emt 0:00:00]} 5. Nxd4 {[%emt 0:00:03]} Nf6 {[%emt 0:00:04]} 6. Bg5 {[%emt 0:00:27]} e6 {[%emt 0:00:07]} 7. Qd2 {[%emt 0:00:03]} a6 {[%emt 0:00:05]} 8. O-O-O {[%emt 0:00:22]} Be7 {[%emt 0:00:05]} 9. f4 {[%emt 0:01:53]} Bd7 {[%emt 0:01:12]} 10. Nf3 {[%emt 0:06:03]} b5 {[%emt 0:00:27]} 11. Bxf6 {[%emt 0:08:38]} gxf6 {[%emt 0:00:09]} 12. Kb1 {[%emt 0:01:30]} Qb6 {[%emt 0:00:16]} 13. Ne2 {[%emt 0:03:59]} O-O-O {[%emt 0:03:27]} 14. f5 {[%emt 0:04:35]} Kb8 {[%emt 0:00:24]} 15. Nf4 {[%emt 0:01:22]} Bc8 {[%emt 0:00:58]} 16. fxe6 {[%emt 0:08:14]} fxe6 {[%emt 0:00:07]} 17. g3 {[%emt 0:01:02]} d5 {[%emt 0:03:24]} 18. exd5 {[%emt 0:01:53]} e5 {[%emt 0:01:27]} 19. Ne2 {[%emt 0:14:27]} Nb4 {[%emt 0:01:06]} 20. Nc3 {[%emt 0:01:10]} Bb7 {[%emt 0:01:52]} 21. Bg2 {[%emt 0:04:16]} Nxd5 {[%emt 0:01:32]} 22. Nxd5 {[%emt 0:04:49]} Rxd5 {[%emt 0:03:43]} 23. Qe2 {[%emt 0:01:47]} Rhd8 {[%emt 0:00:23]} 24. Rxd5 {[%emt 0:02:46]} Bxd5 {[%emt 0:00:28]} 25. Nh4 {[%emt 0:11:07]} Bxg2 {[%emt 0:04:24]} 26. Qxg2 {[%emt 0:01:55]} a5 {[%emt 0:01:45]} 27. Nf5 {[%emt 0:00:53]} Bf8 {[%emt 0:00:18]} 28. Qe2 {[%emt 0:00:56]} a4 {[%emt 0:00:42]} 29. Rd1 {[%emt 0:02:13]} Rxd1+ {[%emt 0:00:17]} 30. Qxd1 {[%emt 0:00:03]} a3 {[%emt 0:01:14]} 31. g4 {[%emt 0:03:53]} Kc7 {[%emt 0:01:52]} 32. bxa3 {[%emt 0:03:31]} Bxa3 {[%emt 0:00:56]} 33. Qe1 {[%emt 0:03:44]} Qc5 {[%emt 0:02:20]} 34. Ne3 {[%emt 0:04:58]} Kb7 {[%emt 0:04:23]} 35. c3 {[%emt 0:00:50]} b4 {[%emt 0:01:11]} 36. cxb4 {[%emt 0:02:02]} Qd4 {[%emt 0:00:14]} 37. Nd1 {[%emt 0:01:09]} Qd3+ {[%emt 0:00:24]} 38. Ka1 {[%emt 0:00:05]} Qc2 {[%emt 0:00:13]} 39. Qh1+ {[%emt 0:00:50]} Kb8 {[%emt 0:00:11]} 0-1

[Event "Teplice Open 2019"]
[Site "Teplice"]
[Date "2019.06.20"]
[Round "6.8"]
[White "Hracek, Zbynek"]
[Black "Hollan, Petr"]
[Result "1/2-1/2"]
[ECO "E69"]
[WhiteElo "2582"]
[BlackElo "2261"]
[Annotator "ChessBase"]
[PlyCount "61"]
[EventDate "2019.06.15"]
[EventType "swiss"]
[EventCountry "CZE"]
[SourceTitle "playchess.com"]
[Source "ChessBase"]
[SourceQuality "1"]
[TimeControl "40/5400+30:1800+30"]

1. d4 {[%emt 0:02:37]} Nf6 {[%emt 0:00:00]} 2. c4 {[%emt 0:00:09]} g6 {[%emt 0:00:00]} 3. g3 {[%emt 0:02:59]} Bg7 {[%emt 0:00:23]} 4. Bg2 {[%emt 0:00:07]} O-O {[%emt 0:00:40]} 5. Nc3 {[%emt 0:00:08]} d6 {[%emt 0:00:07]} 6. Nf3 {[%emt 0:00:09]} c6 {[%emt 0:03:12]} 7. e4 {[%emt 0:03:35]} Qa5 {[%emt 0:11:37]} 8. O-O {[%emt 0:06:47]} e5 {[%emt 0:00:56]} 9. Re1 {[%emt 0:06:07]} Re8 {[%emt 0:00:29]} 10. h3 {[%emt 0:08:48]} Nbd7 {[%emt 0:01:09]} 11. Rb1 {[%emt 0:14:11]} a6 {[%emt 0:12:53]} 12. Be3 {[%emt 0:13:47]} exd4 {[%emt 0:01:16]} 13. Nxd4 {[%emt 0:01:51]} Ne5 {[%emt 0:00:14]} 14. b4 {[%emt 0:11:59]} Qc7 {[%emt 0:06:44]} 15. Qb3 {[%emt 0:00:31]} b5 {[%emt 0:34:22]} 16. cxb5 {[%emt 0:01:18]} axb5 {[%emt 0:00:35]} 17. f4 {[%emt 0:05:44]} Nc4 {[%emt 0:01:20]} 18. Ncxb5 {[%emt 0:00:47]} cxb5 {[%emt 0:00:16]} 19. Nxb5 {[%emt 0:00:03]} Qc6 {[%emt 0:01:55]} 20. Nd4 {[%emt 0:00:36]} Qa6 {[%emt 0:05:09]} 21. Bf1 {[%emt 0:00:45]} d5 {[%emt 0:06:56]} 22. exd5 {[%emt 0:00:30]} Ng4 {[%emt 0:08:56]} 23. Bxc4 {[%emt 0:04:11]} Qb6 {[%emt 0:00:04]} 24. hxg4 {[%emt 0:01:05]} Rxe3 {[%emt 0:00:38]} 25. Rxe3 {[%emt 0:00:06]} Bxd4 {[%emt 0:00:05]} 26. Rbe1 {[%emt 0:01:01]} Bxg4 {[%emt 0:01:56]} 27. Kg2 {[%emt 0:01:10]} Bxe3 {[%emt 0:00:13]} 28. Qxe3 {[%emt 0:06:46]} Qxb4 {[%emt 0:00:05]} 29. Bb3 {[%emt 0:00:06]} Rc8 {[%emt 0:00:46]} 30. Kh2 {[%emt 0:04:20]} h5 {[%emt 0:00:05]} 31. Rc1 {[%emt 0:01:15]} 1/2-1/2

[Event "Teplice Open 2019"]
[Site "Teplice"]
[Date "2019.06.20"]
[Round "6.9"]
[White "Gumularz, Szymon"]
[Black "Dastan, Muhammed Batuhan"]
[Result "1/2-1/2"]
[ECO "D27"]
[WhiteElo "2495"]
[BlackElo "2561"]
[Annotator "ChessBase"]
[PlyCount "61"]
[EventDate "2019.06.15"]
[EventType "swiss"]
[EventCountry "CZE"]
[SourceTitle "playchess.com"]
[Source "ChessBase"]
[SourceQuality "1"]
[TimeControl "40/5400+30:1800+30"]

1. d4 {[%emt 0:00:00]} d5 {[%emt 0:00:00]} 2. c4 {[%emt 0:00:00]} dxc4 {[%emt 0:01:15]} 3. Nf3 {[%emt 0:00:17]} Nf6 {[%emt 0:00:06]} 4. e3 {[%emt 0:00:04]} e6 {[%emt 0:00:03]} 5. Bxc4 {[%emt 0:00:21]} c5 {[%emt 0:00:06]} 6. O-O {[%emt 0:00:53]} a6 {[%emt 0:00:04]} 7. Bb3 {[%emt 0:02:58]} cxd4 {[%emt 0:00:30]} 8. exd4 {[%emt 0:00:06]} Nc6 {[%emt 0:00:04]} 9. Nc3 {[%emt 0:01:46]} Be7 {[%emt 0:00:06]} 10. Re1 {[%emt 0:01:41]} O-O {[%emt 0:00:07]} 11. a3 {[%emt 0:00:43]} b5 {[%emt 0:00:23]} 12. d5 {[%emt 0:10:12]} exd5 {[%emt 0:00:18]} 13. Nxd5 {[%emt 0:01:26]} Nxd5 {[%emt 0:00:06]} 14. Bxd5 {[%emt 0:04:52]} Bb7 {[%emt 0:00:06]} 15. Bf4 {[%emt 0:03:42]} Bf6 {[%emt 0:00:08]} 16. Rc1 {[%emt 0:13:33]} Rc8 {[%emt 0:03:42]} 17. b4 {[%emt 0:22:10]} Ba8 {[%emt 0:02:16]} 18. Bd6 {[%emt 0:07:19]} Re8 {[%emt 0:04:48]} 19. Bxf7+ {[%emt 0:01:48]} Kxf7 {[%emt 0:00:06]} 20. Qd5+ {[%emt 0:00:07]} Kg6 {[%emt 0:00:12]} 21. Qd3+ {[%emt 0:00:38]} Kf7 {[%emt 0:04:06]} 22. Qd5+ {[%emt 0:00:21]} Kg6 {[%emt 0:00:06]} 23. Qd3+ {[%emt 0:00:08]} Kf7 {[%emt 0:00:05]} 24. Qd5+ {[%emt 0:00:11]} Kg6 {[%emt 0:00:05]} 25. Qd3+ {[%emt 0:00:07]} Kf7 {[%emt 0:00:13]} 26. Qd5+ {[%emt 0:00:05]} Kg6 {[%emt 0:00:03]} 27. Qd3+ {[%emt 0:00:03]} Kf7 {[%emt 0:00:06]} 28. Qd5+ {[%emt 0:00:03]} Kg6 {[%emt 0:00:05]} 29. Qd3+ {[%emt 0:00:02]} Kf7 {[%emt 0:00:04]} 30. Qd5+ {[%emt 0:00:04]} Kg6 {[%emt 0:00:05]} 31. Qd3+ {[%emt 0:00:04]} 1/2-1/2

[Event "Teplice Open 2019"]
[Site "Teplice"]
[Date "2019.06.20"]
[Round "6.10"]
[White "Kraus, Tomas"]
[Black "Stocek, Jiri"]
[Result "1/2-1/2"]
[ECO "E32"]
[WhiteElo "2479"]
[BlackElo "2551"]
[Annotator "ChessBase"]
[PlyCount "44"]
[EventDate "2019.06.15"]
[EventType "swiss"]
[EventCountry "CZE"]
[SourceTitle "playchess.com"]
[Source "ChessBase"]
[SourceQuality "1"]
[TimeControl "40/5400+30:1800+30"]

1. d4 {[%emt 0:00:00]} Nf6 {[%emt 0:00:37]} 2. c4 {[%emt 0:00:00]} e6 {[%emt 0:01:25]} 3. Nc3 {[%emt 0:00:10]} Bb4 {[%emt 0:00:08]} 4. Qc2 {[%emt 0:00:22]} O-O {[%emt 0:01:48]} 5. e4 {[%emt 0:00:44]} d6 {[%emt 0:02:02]} 6. a3 {[%emt 0:00:15]} Bxc3+ {[%emt 0:00:06]} 7. bxc3 {[%emt 0:00:03]} Nbd7 {[%emt 0:02:17]} 8. Bd3 {[%emt 0:00:48]} c5 {[%emt 0:00:51]} 9. Ne2 {[%emt 0:03:04]} Qc7 {[%emt 0:00:57]} 10. Ng3 {[%emt 0:05:36]} b6 {[%emt 0:02:24]} 11. f4 {[%emt 0:06:09]} cxd4 {[%emt 0:01:43]} 12. cxd4 {[%emt 0:03:00]} Ba6 {[%emt 0:02:26]} 13. O-O {[%emt 0:07:31]} Rac8 {[%emt 0:02:23]} 14. e5 {[%emt 0:03:24]} Nd5 {[%emt 0:01:39]} 15. exd6 {[%emt 0:08:41]} Qxd6 {[%emt 0:03:49]} 16. Qb3 {[%emt 0:06:09]} N5f6 {[%emt 0:06:57]} 17. Bb2 {[%emt 0:01:07]} Rfd8 {[%emt 0:03:48]} 18. Rad1 {[%emt 0:03:20]} Qc6 {[%emt 0:18:11]} 19. Rc1 {[%emt 0:00:47]} Qd6 {[%emt 0:05:38]} 20. Rcd1 {[%emt 0:00:24]} Qc6 {[%emt 0:03:35]} 21. Rc1 {[%emt 0:00:05]} Qd6 {[%emt 0:00:10]} 22. Rcd1 {[%emt 0:00:04]} Qc6 {[%emt 0:03:54]} 1/2-1/2

[Event "Teplice Open 2019"]
[Site "Teplice"]
[Date "2019.06.20"]
[Round "6.11"]
[White "Babula, Vlastimil"]
[Black "Georgescu, Lena"]
[Result "1/2-1/2"]
[ECO "E15"]
[WhiteElo "2550"]
[BlackElo "2200"]
[Annotator "ChessBase"]
[PlyCount "69"]
[EventDate "2019.06.15"]
[EventType "swiss"]
[EventCountry "CZE"]
[SourceTitle "playchess.com"]
[Source "ChessBase"]
[SourceQuality "1"]
[TimeControl "40/5400+30:1800+30"]

1. d4 {[%emt 0:00:00]} Nf6 {[%emt 0:00:00]} 2. c4 {[%emt 0:00:00]} e6 {[%emt 0:00:00]} 3. Nf3 {[%emt 0:00:11]} b6 {[%emt 0:00:00]} 4. g3 {[%emt 0:00:31]} Bb4+ {[%emt 0:00:00]} 5. Bd2 {[%emt 0:01:04]} Bxd2+ {[%emt 0:00:05]} 6. Qxd2 {[%emt 0:00:30]} Ba6 {[%emt 0:00:09]} 7. b3 {[%emt 0:03:50]} O-O {[%emt 0:00:14]} 8. Nc3 {[%emt 0:01:16]} d5 {[%emt 0:01:09]} 9. cxd5 {[%emt 0:01:29]} exd5 {[%emt 0:00:47]} 10. Bg2 {[%emt 0:02:18]} c5 {[%emt 0:01:22]} 11. O-O {[%emt 0:14:46]} Nc6 {[%emt 0:00:19]} 12. dxc5 {[%emt 0:06:40]} bxc5 {[%emt 0:00:09]} 13. Nh4 {[%emt 0:02:27]} Rc8 {[%emt 0:16:52]} 14. Rac1 {[%emt 0:02:41]} Re8 {[%emt 0:04:24]} 15. Rfe1 {[%emt 0:00:36]} d4 {[%emt 0:05:25]} 16. Na4 {[%emt 0:02:40]} c4 {[%emt 0:02:32]} 17. bxc4 {[%emt 0:02:37]} Ne5 {[%emt 0:04:17]} 18. c5 {[%emt 0:21:33]} d3 {[%emt 0:09:48]} 19. Nf5 {[%emt 0:03:02]} dxe2 {[%emt 0:08:08]} 20. Nd6 {[%emt 0:00:13]} Nd3 {[%emt 0:04:50]} 21. Nxe8 {[%emt 0:03:56]} Qxe8 {[%emt 0:10:18]} 22. c6 {[%emt 0:02:06]} Nxc1 {[%emt 0:03:18]} 23. Qxc1 {[%emt 0:01:37]} Bb5 {[%emt 0:02:18]} 24. Nc3 {[%emt 0:00:53]} Bxc6 {[%emt 0:01:22]} 25. Rxe2 {[%emt 0:00:44]} Qd7 {[%emt 0:00:46]} 26. Rd2 {[%emt 0:04:13]} Qb7 {[%emt 0:04:10]} 27. Bxc6 {[%emt 0:05:38]} Qxc6 {[%emt 0:00:28]} 28. Rd3 {[%emt 0:00:21]} g6 {[%emt 0:03:24]} 29. Qd2 {[%emt 0:01:20]} Kg7 {[%emt 0:00:55]} 30. h3 {[%emt 0:00:32]} h6 {[%emt 0:02:22]} 31. Kh2 {[%emt 0:00:14]} Kh7 {[%emt 0:04:11]} 32. Nd5 {[%emt 0:03:21]} Nxd5 {[%emt 0:00:19]} 33. Rxd5 {[%emt 0:00:03]} Rc7 {[%emt 0:02:17]} 34. Qd4 {[%emt 0:05:43]} Qb6 {[%emt 0:00:19]} 35. Qxb6 {[%emt 0:01:26]} 1/2-1/2

[Event "Teplice Open 2019"]
[Site "Teplice"]
[Date "2019.06.20"]
[Round "6.12"]
[White "Warmerdam, Max"]
[Black "Dragnev, Valentin"]
[Result "1/2-1/2"]
[ECO "C83"]
[WhiteElo "2475"]
[BlackElo "2521"]
[Annotator "ChessBase"]
[PlyCount "61"]
[EventDate "2019.06.15"]
[EventType "swiss"]
[EventCountry "CZE"]
[SourceTitle "playchess.com"]
[Source "ChessBase"]
[SourceQuality "1"]
[TimeControl "40/5400+30:1800+30"]

1. e4 {[%emt 0:00:00]} e5 {[%emt 0:00:00]} 2. Nf3 {[%emt 0:00:00]} Nc6 {[%emt 0:00:01]} 3. Bb5 {[%emt 0:00:00]} a6 {[%emt 0:00:16]} 4. Ba4 {[%emt 0:00:00]} Nf6 {[%emt 0:00:05]} 5. O-O {[%emt 0:00:00]} Nxe4 {[%emt 0:00:12]} 6. d4 {[%emt 0:00:00]} b5 {[%emt 0:00:04]} 7. Bb3 {[%emt 0:00:00]} d5 {[%emt 0:00:05]} 8. dxe5 {[%emt 0:00:06]} Be6 {[%emt 0:00:08]} 9. c3 {[%emt 0:00:04]} Be7 {[%emt 0:00:17]} 10. Re1 {[%emt 0:00:11]} O-O {[%emt 0:01:39]} 11. Nbd2 {[%emt 0:00:06]} Nc5 {[%emt 0:01:52]} 12. Nd4 {[%emt 0:00:27]} Nxd4 {[%emt 0:10:25]} 13. cxd4 {[%emt 0:01:54]} Nd3 {[%emt 0:00:02]} 14. Re3 {[%emt 0:00:06]} Nxc1 {[%emt 0:00:04]} 15. Rxc1 {[%emt 0:00:05]} Rc8 {[%emt 0:00:02]} 16. Rec3 {[%emt 0:00:14]} a5 {[%emt 0:00:04]} 17. Bc2 {[%emt 0:43:01]} c5 {[%emt 0:10:13]} 18. dxc5 {[%emt 0:00:41]} d4 {[%emt 0:01:15]} 19. Rg3 {[%emt 0:00:30]} Rxc5 {[%emt 0:03:16]} 20. Bxh7+ {[%emt 0:02:33]} Kxh7 {[%emt 0:01:18]} 21. Rxc5 {[%emt 0:00:06]} Bxc5 {[%emt 0:00:19]} 22. Qh5+ {[%emt 0:04:13]} Kg8 {[%emt 0:00:15]} 23. Ne4 {[%emt 0:01:19]} Be7 {[%emt 0:03:55]} 24. Qh6 {[%emt 0:00:39]} g6 {[%emt 0:00:27]} 25. Rxg6+ {[%emt 0:00:43]} fxg6 {[%emt 0:00:06]} 26. Qxg6+ {[%emt 0:00:03]} Kh8 {[%emt 0:00:04]} 27. Qh6+ {[%emt 0:00:04]} Kg8 {[%emt 0:00:04]} 28. Qg6+ {[%emt 0:00:05]} Kh8 {[%emt 0:00:04]} 29. Qh6+ {[%emt 0:00:00]} Kg8 {[%emt 0:00:00]} 30. Qg6+ {[%emt 0:00:00]} Kh8 {[%emt 0:00:01]} 31. Qh6+ {[%emt 0:00:04]} 1/2-1/2